bitfinex/quotes_SOLUSD_20250401
["timestamp","ask_amount","ask_price","bid_price","bid_amount"]
[1743519218026,38.58870617,127.32,127.26,6.5963]
[1743519218345,0.03,127.32,127.26,6.5963]
[1743519219046,38.58870617,127.32,127.26,6.5963]
[1743519219747,0.03,127.32,127.26,6.5963]
[1743519220151,0.03,127.32,127.26,14.4542]
[1743519221266,0.03,127.32,127.26,6.5963]
[1743519221760,0.03,127.32,127.26,14.4542]
[1743519222556,0.03,127.32,127.26,96.1542]
[1743519222945,0.03,127.32,127.26,115.799]
[1743519223148,0.03,127.32,127.26,252.399]
[1743519225540,0.03,127.32,127.27,18.79181043]
[1743519225857,0.03,127.32,127.27,237.09181043]
[1743519226449,0.03,127.32,127.28,7.8566]
[1743519228442,0.03,127.32,127.27,226.157]
[1743519228845,0.03,127.32,127.27,81.7]
[1743519229073,0.03,127.32,127.27,91.48]
[1743519229566,0.03,127.32,127.27,81.7]
[1743519230241,0.03,127.32,127.27,89.5572]
[1743519235446,0.03,127.32,127.27,99.1972]
[1743519236076,0.03,127.32,127.27,235.7972]
[1743519236565,0.03,127.32,127.27,255.4404]
[1743519237967,0.03,127.32,127.28,18.79181043]
[1743519238146,0.03,127.32,127.28,237.09181043]
[1743519238942,0.03,127.32,127.29,7.856]
[1743519239172,0.03,127.32,127.29,27.4961]
[1743519239375,0.03,127.32,127.29,245.7961]
[1743519240169,0.03,127.32,127.29,226.156]
[1743519241469,0.03,127.32,127.29,218.3]
[1743519241682,0.03,127.32,127.29,226.1559]
[1743519242566,9.5056,127.43,127.32,18.79181043]
[1743519242848,0.03,127.45,127.34,18.79181043]
[1743519243050,0.03,127.45,127.34,237.09181043]
[1743519243249,38.58870617,127.45,127.35,27.4832]
[1743519243448,0.03,127.45,127.35,31.45807179]
[1743519243661,0.03,127.45,127.36,18.79181043]
[1743519243965,0.03,127.45,127.36,237.09181043]
[1743519244145,0.03,127.45,127.38,6.0566]
[1743519244346,0.03,127.45,127.39,9.5]
[1743519244548,0.03,127.45,127.4,18.79181043]
[1743519245167,0.03,127.45,127.41,7.8486]
[1743519245467,0.03,127.45,127.41,245.7702]
[1743519245773,0.03,127.45,127.41,235.6486]
[1743519246278,0.03,127.45,127.41,227.8]
[1743519247096,38.55870617,127.49,127.41,227.8]
[1743519247389,7.8443,127.48,127.41,227.8]
[1743519247881,46.40300617,127.48,127.41,227.8]
[1743519248060,7.8443,127.48,127.41,227.8]
[1743519248270,38.55870617,127.47,127.41,227.8]
[1743519248886,46.40300617,127.48,127.41,227.8]
[1743519249384,38.55870617,127.49,127.41,227.8]
[1743519249877,46.40180617,127.5,127.41,227.8]
[1743519250165,38.55870617,127.49,127.41,227.8]
[1743519250484,46.40180617,127.5,127.41,227.8]
[1743519250795,38.55870617,127.49,127.41,227.8]
[1743519251354,7.8443,127.48,127.41,227.8]
[1743519251892,46.40300617,127.48,127.41,227.8]
[1743519252071,38.55870617,127.47,127.41,218.3]
[1743519252263,38.55870617,127.46,127.38,6.0566]
[1743519252662,1.532,127.47,127.38,6.0566]
[1743519252866,1.532,127.47,127.38,13.9069]
[1743519253073,38.55870617,127.46,127.38,6.0566]
[1743519253254,38.55870617,127.45,127.38,15.4766]
[1743519253456,7.8468,127.44,127.38,15.4766]
[1743519253778,46.40550617,127.44,127.38,6.0566]
[1743519254072,46.40550617,127.44,127.36,81.7]
[1743519255074,38.55870617,127.43,127.36,81.7]
[1743519255276,38.55870617,127.43,127.35,142.8472]
[1743519255957,7.848,127.42,127.35,142.8472]
[1743519256477,46.40670617,127.42,127.35,142.8472]
[1743519256683,38.55870617,127.41,127.35,142.8472]
[1743519256886,38.55870617,127.41,127.35,6.2472]
[1743519257177,7.848,127.42,127.35,6.2472]
[1743519257357,46.40670617,127.42,127.35,6.2472]
[1743519257772,38.55870617,127.41,127.35,6.2472]
[1743519258082,46.40790617,127.41,127.33,7.8533]
[1743519258484,38.55870617,127.37,127.29,15.8399]
[1743519258670,38.55870617,127.39,127.29,97.5399]
[1743519258865,38.55870617,127.38,127.29,97.5399]
[1743519259469,38.55870617,127.38,127.29,97.6029]
[1743519259785,46.40940617,127.38,127.3,7.8554]
[1743519260177,38.55870617,127.37,127.29,97.6029]
[1743519260373,46.40940617,127.38,127.29,105.4587]
[1743519260679,46.40940617,127.38,127.29,15.9029]
[1743519260982,46.40880617,127.39,127.29,23.7588]
[1743519261567,46.40880617,127.39,127.29,15.9029]
[1743519261975,7.8501,127.39,127.29,15.9029]
[1743519263372,46.40880617,127.39,127.29,15.9029]
[1743519263683,46.40880617,127.39,127.3,7.8554]
[1743519263886,38.55870617,127.38,127.3,7.8554]
[1743519264267,46.40880617,127.39,127.3,7.8554]
[1743519265258,7.8496,127.4,127.31,18.79181043]
[1743519265465,46.40760617,127.41,127.31,237.09181043]
[1743519265777,7.8489,127.41,127.32,7.8542]
[1743519265980,9.3967,127.44,127.34,6.0812]
[1743519266170,9.3967,127.44,127.35,9.28]
[1743519266361,7.8462,127.45,127.36,18.79181043]
[1743519267183,46.40490617,127.45,127.36,18.79181043]
[1743519268489,46.40490617,127.45,127.37,7.8511]
[1743519268692,227.7675,127.48,127.37,89.5511]
[1743519268693,46.40460617,127.46,127.37,89.5511]
[1743519268985,46.40460617,127.46,127.37,226.1511]
[1743519269687,46.40460617,127.46,127.37,245.7789]
[1743519269873,38.55870617,127.46,127.37,245.7789]
[1743519270081,46.40360617,127.47,127.37,245.7789]
[1743519270268,7.8449,127.47,127.37,245.7789]
[1743519270463,48.01070617,127.48,127.38,6.2702]
[1743519270670,46.40270617,127.49,127.4,1.5886]
[1743519270897,46.40270617,127.49,127.41,9.24]
[1743519271393,38.55870617,127.48,127.41,9.24]
[1743519271773,46.40300617,127.48,127.42,7.848]
[1743519271980,7.8431,127.5,127.41,17.0884]
[1743519272180,38.55870617,127.49,127.41,17.0884]
[1743519272984,46.40260617,127.49,127.41,17.0884]
[1743519273176,38.55870617,127.48,127.41,17.0884]
[1743519273998,2.8199978,127.51,127.41,36.71]
[1743519274185,2.8199978,127.51,127.42,18.79181043]
[1743519274186,41.37870397,127.51,127.42,18.79181043]
[1743519274383,2.8199978,127.51,127.43,6.0643]
[1743519274579,2.8199978,127.51,127.43,87.7643]
[1743519275198,41.37870397,127.51,127.44,7.8468]
[1743519275380,49.22130397,127.51,127.44,7.8468]
[1743519275580,2.8199978,127.51,127.44,7.8468]
[1743519275900,26.8250312,127.51,127.44,7.8468]
[1743519276095,34.6676312,127.51,127.44,7.8468]
[1743519276295,34.6675312,127.51,127.44,7.8468]
[1743519276803,2.8199978,127.51,127.44,7.8468]
[1743519277392,10.6625978,127.51,127.44,7.8468]
[1743519277600,34.6676312,127.51,127.44,7.8468]
[1743519277901,49.07400923,127.51,127.44,7.8468]
[1743519278404,41.23140923,127.51,127.44,7.8468]
[1743519278800,2.8199978,127.51,127.44,7.8468]
[1743519280400,41.23140923,127.51,127.44,7.8468]
[1743519281303,49.07420923,127.51,127.44,7.8468]
[1743519281793,10.6627978,127.51,127.44,7.8468]
[1743519281998,41.23140923,127.51,127.44,7.8468]
[1743519282395,2.8199978,127.51,127.44,7.8468]
[1743519282904,2.8199978,127.51,127.44,27.4638]
[1743519283290,2.8199978,127.51,127.47,20.0]
[1743519283591,2.8199978,127.51,127.5,7.8431]
[1743519283795,38.41141143,127.6,127.5,226.28526157]
[1743519284089,38.41141143,127.59,127.5,226.28526157]
[1743519284687,38.41141143,127.6,127.51,0.14216157]
[1743519285012,38.41141143,127.6,127.51,237.233972]
[1743519285216,7.8363,127.61,127.51,237.233972]
[1743519285388,38.41141143,127.6,127.51,218.44216157]
[1743519285703,46.24851143,127.6,127.52,7.8419]
[1743519285886,46.24851143,127.6,127.53,9.1]
[1743519286406,38.41141143,127.57,127.51,81.7]
[1743519286813,38.41141143,127.57,127.51,89.5425]
[1743519287419,38.41141143,127.58,127.51,89.5425]
[1743519287919,46.24981143,127.58,127.51,89.5425]
[1743519288312,38.41141143,127.6,127.51,89.5425]
[1743519288817,38.41141143,127.59,127.51,89.5425]
[1743519289203,38.41141143,127.57,127.51,89.5424]
[1743519289399,38.41141143,127.58,127.51,89.5424]
[1743519290013,46.25021143,127.57,127.51,81.46174]
[1743519290405,46.25021143,127.57,127.51,89.30424]
[1743519290714,46.25021143,127.57,127.51,81.46174]
[1743519290912,38.41141143,127.56,127.51,81.46174]
[1743519291123,38.41141143,127.56,127.49,23.2821]
[1743519291499,46.25021143,127.57,127.49,23.2821]
[1743519291698,7.8376,127.59,127.49,23.2821]
[1743519291890,38.41141143,127.58,127.49,42.8914]
[1743519292096,46.24861143,127.6,127.51,7.8425]
[1743519292296,46.24861143,127.6,127.51,89.30424]
[1743519292297,7.8372,127.6,127.51,89.30424]
[1743519292607,46.24861143,127.6,127.51,89.30424]
[1743519292807,38.41141143,127.6,127.51,108.91054]
[1743519293104,46.24841143,127.6,127.51,108.91054]
[1743519293305,19.5893,127.63,127.53,6.5818]
[1743519293306,7.8355,127.63,127.53,6.5818]
[1743519293507,7.8355,127.63,127.54,10.5415]
[1743519293508,38.41141143,127.63,127.54,10.5415]
[1743519293717,38.41141143,127.62,127.54,10.5415]
[1743519294013,38.41141143,127.61,127.54,10.5415]
[1743519294203,46.24781143,127.61,127.55,7.84]
[1743519294406,38.41141143,127.61,127.55,7.84]
[1743519295202,7.8351,127.63,127.55,16.8]
[1743519295404,38.41141143,127.61,127.55,16.8]
[1743519295611,38.41141143,127.6,127.55,16.8]
[1743519296413,38.41141143,127.61,127.55,16.8]
[1743519297420,4.81489197,127.64,127.56,0.14216157]
[1743519297610,4.81489197,127.64,127.56,81.60390157]
[1743519298221,4.81489197,127.64,127.6,26.3003]
[1743519298447,1.40165037,127.64,127.63,20.0]
[1743519298610,1.5509,127.72,127.64,20.0]
[1743519298812,7.8279,127.75,127.64,101.46174]
[1743519299145,38.41141143,127.73,127.64,101.46174]
[1743519299309,9.0263978,127.76,127.65,0.14216157]
[1743519299500,2.8199978,127.76,127.67,6.1812]
[1743519299845,38.41141143,127.73,127.67,87.64294]
[1743519299998,38.41141143,127.72,127.67,6.1812]
[1743519300202,38.41141143,127.71,127.66,9.04]
[1743519300514,22.8199978,127.76,127.66,16.8729]
[1743519300806,2.8199978,127.76,127.67,0.14216157]
[1743519301109,41.23140923,127.76,127.67,236.995712]
[1743519301309,38.41141143,127.75,127.67,218.20390157]
[1743519301508,10.6471978,127.76,127.67,218.06174]
[1743519301713,38.41141143,127.75,127.67,218.06174]
[1743519301907,38.41141143,127.73,127.67,81.46174]
[1743519302109,38.41141143,127.75,127.67,81.46174]
[1743519302304,38.41141143,127.75,127.68,7.832]
[1743519302530,2.8199978,127.76,127.68,7.832]
[1743519302708,2.8199978,127.76,127.7,6.2535]
[1743519303031,2.8199978,127.76,127.71,9.18]
[1743519303209,2.8199978,127.76,127.72,0.14216157]
[1743519303530,2.8199978,127.76,127.72,81.46174]
[1743519304309,2.8199978,127.76,127.72,89.29094]
[1743519304823,2.8199978,127.76,127.72,7.8292]
[1743519306833,2.8199978,127.76,127.72,27.4032]
[1743519307010,2.8199978,127.76,127.72,108.86494]
[1743519307607,2.8199978,127.76,127.73,0.14216157]
[1743519307833,2.8199978,127.76,127.73,81.60390157]
[1743519308034,2.8199978,127.76,127.73,81.46174]
[1743519308360,2.8199978,127.76,127.74,7.8284]
[1743519308731,2.8199978,127.76,127.75,0.14216157]
[1743519309230,38.246058,127.83,127.75,6.59896157]
[1743519309407,38.246058,127.83,127.76,9.12]
[1743519309607,38.246058,127.82,127.76,9.12]
[1743519309809,7.8224,127.84,127.76,9.12]
[1743519310023,38.246058,127.83,127.76,9.12]
[1743519310225,5.7323921,127.83,127.76,9.12]
[1743519310534,43.9784501,127.83,127.77,7.8265]
[1743519310715,5.7323921,127.83,127.77,7.8265]
[1743519311118,5.7323921,127.83,127.77,11.82518656]
[1743519311311,43.9784501,127.83,127.77,11.82518656]
[1743519311827,51.8015501,127.83,127.77,11.82518656]
[1743519312223,38.246058,127.82,127.77,7.8265]
[1743519312531,51.8015501,127.83,127.77,7.8265]
[1743519312733,43.9784501,127.83,127.77,7.8265]
[1743519313112,13.5553921,127.83,127.77,7.8265]
[1743519313313,38.246058,127.82,127.77,7.8265]
[1743519313534,51.8014501,127.83,127.77,7.8265]
[1743519313934,5.7323921,127.83,127.77,7.8265]
[1743519314319,5.7323921,127.83,127.77,27.3929]
[1743519314919,43.9784501,127.83,127.77,7.8265]
[1743519315118,5.7323921,127.83,127.77,7.8265]
[1743519315319,5.7323921,127.83,127.77,27.3929]
[1743519316049,5.7323921,127.83,127.77,7.8265]
[1743519316740,43.9784501,127.83,127.77,7.8265]
[1743519317115,51.8014501,127.83,127.77,7.8265]
[1743519317320,38.246058,127.82,127.77,7.8265]
[1743519317842,5.7323921,127.83,127.77,7.8265]
[1743519318031,5.7323921,127.83,127.77,27.3929]
[1743519318219,43.9784501,127.83,127.77,7.8265]
[1743519319120,5.7323921,127.83,127.8,20.0]
[1743519320023,5.7323921,127.83,127.77,250.63432852]
[1743519320235,5.7323921,127.83,127.77,114.03432852]
[1743519320422,5.7323921,127.83,127.77,108.85464]
[1743519321528,43.9784501,127.83,127.77,89.28824]
[1743519321917,43.9784501,127.83,127.77,108.85464]
[1743519322129,38.246058,127.81,127.77,81.46174]
[1743519322339,38.246058,127.79,127.74,7.8284]
[1743519322542,20.1222921,127.83,127.74,7.8284]
[1743519322841,38.246058,127.81,127.74,7.8284]
[1743519323235,38.246058,127.8,127.74,7.8284]
[1743519323839,38.246058,127.77,127.72,87.58794]
[1743519324022,38.246058,127.77,127.72,13.9556]
[1743519324226,1.5788,127.8,127.72,17.92077643]
[1743519324426,38.246058,127.78,127.72,17.92077643]
[1743519324623,38.246058,127.78,127.72,37.49477643]
[1743519325032,38.246058,127.77,127.72,13.9556]
[1743519325242,43.9784501,127.77,127.72,6.1262]
[1743519325440,43.9784501,127.77,127.72,13.9557]
[1743519325839,38.246058,127.75,127.72,6.1262]
[1743519326150,38.246058,127.74,127.69,7.8314]
[1743519326894,38.246058,127.76,127.69,7.8314]
[1743519327049,43.9784501,127.77,127.69,27.41]
[1743519327229,38.246058,127.76,127.69,27.41]
[1743519327753,5.7323921,127.77,127.72,20.0]
[1743519327935,5.7323921,127.77,127.72,29.1]
[1743519328855,5.7323921,127.77,127.73,7.829]
[1743519331151,5.7323921,127.77,127.74,1.92002314]
[1743519331344,39.5922,127.91,127.78,20.14216157]
[1743519331345,1.5751,127.89,127.78,20.14216157]
[1743519331551,38.24114576,127.86,127.78,227.28390157]
[1743519332071,38.24114576,127.87,127.78,227.28390157]
[1743519332239,39.81624576,127.89,127.8,6.5934]
[1743519332438,1.5751,127.89,127.8,88.05514]
[1743519332631,39.81624576,127.89,127.8,88.05514]
[1743519332830,38.24114576,127.87,127.8,88.05514]
[1743519333026,38.24114576,127.86,127.81,7.8241]
[1743519333233,38.24114576,127.84,127.8,16.8844]
[1743519333446,38.24114576,127.83,127.78,7.8259]
[1743519333841,38.24114576,127.83,127.77,6.6452]
[1743519334028,38.24114576,127.83,127.77,14.4716]
[1743519334233,38.24114576,127.82,127.77,6.6452]
[1743519334936,38.24114576,127.8,127.75,81.46174]
[1743519335135,38.24114576,127.81,127.75,81.46174]
[1743519335335,38.24114576,127.81,127.75,89.28934]
[1743519335935,38.24114576,127.79,127.75,81.46174]
[1743519336137,38.24114576,127.77,127.71,81.46174]
[1743519336443,38.24114576,127.8,127.71,81.46174]
[1743519336444,38.24114576,127.75,127.71,81.46174]
[1743519336635,35.74114576,127.75,127.71,81.46174]
[1743519336839,35.74114576,127.75,127.7,15.4717]
[1743519337446,35.74114576,127.75,127.7,9.04]
[1743519337765,38.24114576,127.73,127.7,9.04]
[1743519338073,7.8274,127.76,127.7,9.04]
[1743519338372,38.24114576,127.74,127.7,9.04]
[1743519339664,28.5848,127.79,127.67,87.77774]
[1743519339665,38.24114576,127.72,127.67,87.77774]
[1743519339876,38.24114576,127.71,127.67,87.77774]
[1743519340037,38.24114576,127.74,127.67,81.46174]
[1743519340237,35.74114576,127.74,127.67,81.46174]
[1743519340469,38.24114576,127.7,127.64,9.063]
[1743519340665,38.24114576,127.69,127.64,9.063]
[1743519341170,46.07304576,127.69,127.64,0.063]
[1743519341469,38.24114576,127.69,127.64,0.063]
[1743519341774,1.5581,127.73,127.64,0.063]
[1743519342069,38.24114576,127.72,127.64,0.20516157]
[1743519342371,38.24114576,127.72,127.64,0.063]
[1743519342667,38.24114576,127.71,127.64,0.063]
[1743519342869,38.24114576,127.7,127.64,0.063]
[1743519343461,38.24114576,127.71,127.64,0.063]
[1743519344366,1.5581,127.73,127.64,0.063]
[1743519344551,39.6199,127.82,127.64,0.063]
[1743519344552,1.5396,127.79,127.68,0.28432314]
[1743519344882,38.24114576,127.78,127.7,6.2547]
[1743519345086,10.5396,127.79,127.68,81.46174]
[1743519345279,38.24114576,127.77,127.69,7.8314]
[1743519345490,38.24114576,127.76,127.69,7.8314]
[1743519345780,38.24114576,127.75,127.69,7.8314]
[1743519345982,38.24114576,127.75,127.68,81.46174]
[1743519346147,38.24114576,127.73,127.67,7.8323]
[1743519346594,38.24114576,127.71,127.65,88.05934]
[1743519346884,20.0,127.75,127.65,95.89304]
[1743519347120,38.24114576,127.72,127.65,95.89304]
[1743519347245,38.24114576,127.71,127.65,95.89304]
[1743519348487,7.8292,127.73,127.65,95.89304]
[1743519348652,38.24114576,127.72,127.65,95.89304]
[1743519349261,38.24114576,127.71,127.65,95.89304]
[1743519349667,38.24114576,127.71,127.65,88.05934]
[1743519349883,46.07134576,127.71,127.65,88.05934]
[1743519350581,26.47674886,127.76,127.65,95.89314]
[1743519350788,38.24114576,127.73,127.65,95.89314]
[1743519351022,26.47674886,127.76,127.65,115.47794]
[1743519351198,38.24114576,127.74,127.65,115.47794]
[1743519351394,38.24114576,127.73,127.65,115.47794]
[1743519352196,38.24114576,127.72,127.65,115.47794]
[1743519352618,38.24114576,127.72,127.65,95.89314]
[1743519352828,38.24114576,127.68,127.64,0.063]
[1743519353128,38.24114576,127.69,127.64,0.063]
[1743519353288,38.24114576,127.68,127.64,0.063]
[1743519353627,1.5316,127.72,127.64,0.063]
[1743519353925,38.24114576,127.68,127.65,0.063]
[1743519354095,38.24114576,127.67,127.65,0.063]
[1743519354655,38.24114576,127.66,127.65,0.063]
[1743519355198,38.24114576,127.67,127.65,0.063]
[1743519355510,38.24114576,127.68,127.65,0.063]
[1743519356509,7.8304,127.71,127.65,0.063]
[1743519356715,38.24114576,127.69,127.65,0.063]
[1743519357326,38.24114576,127.68,127.65,0.063]
[1743519357620,15.8858,127.72,127.65,0.063]
[1743519357931,38.24114576,127.69,127.65,0.063]
[1743519358104,38.24114576,127.7,127.65,0.063]
[1743519358726,38.24114576,127.69,127.65,0.063]
[1743519358924,15.8857,127.72,127.65,0.063]
[1743519359225,38.24114576,127.68,127.65,0.063]
[1743519359425,38.24114576,127.67,127.65,0.063]
[1743519360212,8.056,127.72,127.65,0.063]
[1743519360411,38.24114576,127.67,127.65,0.063]
[1743519362348,27.6312,127.72,127.65,0.063]
[1743519362349,38.24114576,127.69,127.65,0.063]
[1743519362918,15.8858,127.72,127.65,0.063]
[1743519362919,38.24114576,127.74,127.66,6.384]
[1743519363114,1.6237,127.75,127.66,15.344]
[1743519363313,38.24114576,127.74,127.66,15.344]
[1743519363533,38.24114576,127.75,127.67,0.28432314]
[1743519363811,38.24114576,127.75,127.68,27.4122]
[1743519364129,46.06624576,127.8,127.68,108.87394]
[1743519364337,7.046311,127.85,127.71,0.28432314]
[1743519364533,38.24114576,127.76,127.72,8.96]
[1743519364734,38.24114576,127.74,127.7,15.1229]
[1743519365050,38.24114576,127.77,127.7,15.1229]
[1743519365917,38.24114576,127.77,127.71,7.8302]
[1743519366317,46.06604576,127.8,127.71,7.8302]
[1743519366548,38.24114576,127.77,127.71,27.4058]
[1743519367544,38.24114576,127.76,127.71,27.4058]
[1743519368150,38.24114576,127.74,127.7,22.9535]
[1743519368449,7.8266,127.77,127.7,22.9535]
[1743519368450,38.24114576,127.75,127.7,22.9535]
[1743519368644,38.24114576,127.74,127.7,22.9535]
[1743519369557,7.8266,127.77,127.7,22.9535]
[1743519369743,38.24114576,127.75,127.7,22.9535]
[1743519370136,38.24114576,127.74,127.7,22.9535]
[1743519371033,38.24114576,127.73,127.69,7.8314]
[1743519371837,38.24114576,127.73,127.67,96.81214]
[1743519372024,38.24114576,127.73,127.68,7.8318]
[1743519372232,38.24114576,127.72,127.67,95.74454]
[1743519372649,38.24114576,127.68,127.65,0.063]
[1743519372824,38.24114576,127.68,127.65,7.8969]
[1743519373020,38.24114576,127.68,127.65,0.063]
[1743519373220,38.24114576,127.67,127.65,0.063]
[1743519373736,1.5664,127.71,127.65,0.063]
[1743519373936,1.5664,127.71,127.65,7.8967]
[1743519374144,38.24114576,127.69,127.65,0.063]
[1743519374341,28.9744,127.73,127.65,0.063]
[1743519374546,38.24114576,127.68,127.65,0.063]
[1743519375430,9.4019,127.73,127.63,7.5607]
[1743519375629,38.24114576,127.69,127.63,27.1485]
[1743519376142,38.24114576,127.68,127.63,7.5607]
[1743519376342,38.24114576,127.69,127.63,7.5607]
[1743519376546,38.24114576,127.69,127.63,27.1485]
[1743519377153,7.8296,127.72,127.63,27.1485]
[1743519377336,38.24114576,127.69,127.63,27.1485]
[1743519377545,38.24114576,127.68,127.63,27.1485]
[1743519377726,38.24114576,127.68,127.63,7.5607]
[1743519378045,38.24114576,127.67,127.62,16.7784]
[1743519378228,7.8296,127.72,127.62,16.7784]
[1743519378545,38.24114576,127.68,127.62,16.7784]
[1743519378728,7.8305,127.71,127.62,36.3678]
[1743519378927,38.24114576,127.68,127.62,36.3678]
[1743519379634,38.24114576,127.67,127.62,16.7784]
[1743519379833,38.24114576,127.68,127.62,16.7784]
[1743519380134,38.24114576,127.67,127.62,7.8984]
[1743519380919,38.24114576,127.68,127.62,7.8984]
[1743519381327,38.24114576,127.68,127.63,0.063]
[1743519381941,38.24114576,127.69,127.63,0.063]
[1743519382143,38.24114576,127.68,127.63,0.063]
[1743519382949,38.24114576,127.67,127.63,0.063]
[1743519383324,38.24114576,127.66,127.63,0.063]
[1743519383936,27.4058,127.71,127.63,0.063]
[1743519384250,38.24114576,127.66,127.63,0.063]
[1743519384745,38.24114576,127.64,127.63,0.063]
[1743519385450,21.1236,127.67,127.63,0.063]
[1743519385451,38.24114576,127.65,127.63,0.063]
[1743519385846,38.24114576,127.64,127.63,0.063]
[1743519386847,46.07564576,127.64,127.63,0.063]
[1743519387046,38.24114576,127.64,127.63,0.063]
[1743519387247,46.07564576,127.64,127.63,0.063]
[1743519387552,38.24114576,127.64,127.63,0.063]
[1743519388077,1.5405,127.67,127.63,0.063]
[1743519388231,38.24114576,127.67,127.63,0.063]
[1743519389051,38.24114576,127.66,127.63,0.063]
[1743519389455,38.24114576,127.65,127.63,0.063]
[1743519389632,38.24114576,127.64,127.63,0.063]
[1743519390236,46.98114576,127.68,127.63,0.063]
[1743519390454,38.24114576,127.64,127.63,0.063]
[1743519391666,47.73284576,127.64,127.63,0.063]
[1743519392194,66.38249462,127.64,127.63,0.063]
[1743519392376,47.73284576,127.64,127.63,0.063]
[1743519393554,104.90796352,127.64,127.63,0.063]
[1743519393928,18.64964886,127.63,127.62,0.063]
[1743519394132,95.13194038,127.63,127.62,0.063]
[1743519394856,102.96704038,127.63,127.62,0.063]
[1743519396069,122.55484038,127.63,127.59,0.063]
[1743519396249,38.24114576,127.6,127.59,0.063]
[1743519396961,46.07804576,127.6,127.59,0.063]
[1743519398467,38.24114576,127.6,127.59,0.063]
[1743519399786,38.24114576,127.61,127.59,0.063]
[1743519400273,9.4919,127.64,127.59,0.063]
[1743519400274,38.24114576,127.6,127.59,0.063]
[1743519400976,38.24114576,127.61,127.59,0.063]
[1743519401964,38.24114576,127.6,127.59,0.063]
[1743519402779,46.07804576,127.6,127.59,0.063]
[1743519403161,20.0,127.57,127.52,0.063]
[1743519403361,38.24114576,127.53,127.52,0.063]
[1743519405194,46.08234576,127.53,127.52,0.063]
[1743519405876,7.8412,127.53,127.52,0.063]
[1743519406091,46.08234576,127.53,127.52,0.063]
[1743519407210,38.24114576,127.53,127.52,0.063]
[1743519409680,38.24114576,127.55,127.52,0.063]
[1743519409888,38.24114576,127.56,127.53,6.2259]
[1743519410882,38.24114576,127.54,127.53,6.2259]
[1743519411291,38.24114576,127.55,127.53,6.2259]
[1743519411473,38.24114576,127.55,127.53,14.0671]
[1743519411675,38.24114576,127.56,127.53,14.0671]
[1743519411874,38.24114576,127.56,127.53,6.2259]
[1743519412983,38.24114576,127.56,127.53,14.0671]
[1743519413166,38.24114576,127.56,127.53,6.2259]
[1743519413368,38.24114576,127.54,127.52,0.063]
[1743519413586,38.24114576,127.53,127.52,0.063]
[1743519414965,39.82684576,127.53,127.52,0.063]
[1743519415183,18.64964886,127.52,127.51,0.063]
[1743519415368,102.97384038,127.52,127.51,0.063]
[1743519415569,102.97384038,127.52,127.5,0.063]
[1743519415787,95.41626352,127.51,127.5,0.063]
[1743519415989,38.24114576,127.45,127.41,6.4085]
[1743519416370,38.24114576,127.46,127.41,14.257]
[1743519416587,38.24114576,127.44,127.41,6.4085]
[1743519416787,38.24114576,127.42,127.41,0.063]
[1743519417191,38.24114576,127.43,127.41,0.063]
[1743519417524,38.24114576,127.42,127.41,0.063]
[1743519417817,18.64964886,127.45,127.41,0.063]
[1743519418000,38.24114576,127.42,127.41,0.063]
[1743519418492,38.24114576,127.43,127.41,0.063]
[1743519419076,7.8455,127.46,127.41,0.063]
[1743519419077,38.24114576,127.42,127.41,0.063]
[1743519419796,46.08914576,127.42,127.41,0.063]
[1743519419996,38.24114576,127.42,127.41,0.063]
[1743519420691,46.08924576,127.42,127.39,0.063]
[1743519420883,38.24114576,127.4,127.39,0.063]
[1743519421192,39.82344576,127.4,127.39,0.063]
[1743519421787,38.24114576,127.4,127.39,0.063]
[1743519422700,39.88004576,127.44,127.39,0.063]
[1743519422876,38.24114576,127.41,127.39,0.063]
[1743519423277,38.24114576,127.4,127.39,0.063]
[1743519423496,38.24114576,127.41,127.39,0.063]
[1743519423692,38.24114576,127.4,127.39,0.063]